fUSD/lending_fUSD_20250606
["ID","MTS","AMOUNT","RATE_DAILY","PERIOD"]
[364775279,1749238255980,-995.31,0.00027726,5]
[364775280,1749238255989,-480.0,0.00027726,5]
[364775281,1749238255999,-523.71,0.00027726,5]
[364775282,1749238256009,-1046.65,0.00027726,5]
[364775283,1749238256019,-480.0,0.00027726,5]
[364775284,1749238256028,-480.0,0.00027726,5]
[364775285,1749238256038,-3516.83,0.00027726,5]
[364775286,1749238256047,-7192.4,0.00027726,5]
[364775287,1749238256058,-480.0,0.00027726,5]
[364775288,1749238256067,-480.0,0.00027726,5]
[364775289,1749238256077,-480.0,0.00027726,5]
[364775290,1749238256086,-1068.47,0.00027726,5]
[364775291,1749238256096,-843.7,0.00027726,5]
[364775292,1749238256105,-480.0,0.00027726,5]
[364775293,1749238256115,-579.69,0.00027726,5]
[364775294,1749238256124,-1025.1,0.00027726,5]
[364775295,1749238256133,-618.2,0.00027726,5]
[364775296,1749238256142,-606.91,0.00027726,5]
[364775297,1749238256152,-480.0,0.00027726,5]
[364775298,1749238256161,-7137.4,0.00027726,5]
[364775299,1749238256170,-151.0,0.00027726,7]
[364775300,1749238256180,-480.0,0.00027726,5]
[364775301,1749238256189,-2026.65,0.00027726,5]
[364775302,1749238256198,-2994.18,0.00027726,5]
[364775303,1749238256208,-11496.53,0.00027726,5]
[364775304,1749238256217,-151.0,0.00027726,7]
[364775305,1749238256227,-220.938559,0.00027726,7]
[364775306,1749238256236,-1784.57,0.00027726,5]
[364775307,1749238256245,-514.45,0.00027726,5]
[364775308,1749238256255,-626.49955975,0.00027726,5]
[364775309,1749238256265,-1232.611643,0.00027726,7]
[364775310,1749238256275,-1232.611643,0.00027726,7]
[364775311,1749238256285,-480.0,0.00027726,5]
[364775312,1749238256295,-480.0,0.00027726,5]
[364775313,1749238256306,-480.0,0.00027726,5]
[364775314,1749238256316,-1232.611643,0.00027726,7]
[364775315,1749238256326,-3152.9,0.00027726,5]
[364775316,1749238256337,-1232.611643,0.00027726,7]
[364775317,1749238256347,-1227.31,0.00027726,5]
[364775318,1749238256357,-480.0,0.00027726,5]
[364775319,1749238256367,-497.39,0.00027726,5]
[364775320,1749238256377,-480.0,0.00027726,5]
[364775321,1749238256386,-4337.15,0.00027726,5]
[364775322,1749238256396,-151.0,0.00027726,7]
[364775323,1749238256408,-480.0,0.00027726,5]
[364775324,1749238256418,-151.0,0.00027726,7]
[364775325,1749238256428,-1547.12,0.00027726,5]
[364775326,1749238256437,-480.0,0.00027726,5]
[364775327,1749238256447,-3302.16,0.00027726,5]
[364775328,1749238256457,-189.938106,0.00027726,7]
[364775329,1749238256466,-189.938106,0.00027726,7]
[364775330,1749238256476,-533.36,0.00027726,5]
[364775331,1749238256486,-151.0,0.00027726,7]
[364775332,1749238256496,-151.0,0.00027726,7]
[364775333,1749238256510,-747.92,0.00027726,5]
[364775334,1749238256519,-1427.98,0.00027726,5]
[364775335,1749238256528,-572.16,0.00027726,5]
[364775336,1749238256538,-577.87,0.00027726,5]
[364775337,1749238256549,-480.0,0.00027726,5]
[364775338,1749238256559,-189.938106,0.00027726,7]
[364775339,1749238256568,-189.938106,0.00027726,7]
[364775340,1749238256579,-151.0,0.00027726,7]
[364775341,1749238256590,-151.0,0.00027726,7]
[364775342,1749238256600,-151.0,0.00027726,7]
[364775343,1749238256610,-151.0,0.00027726,7]
[364775344,1749238256620,-1647.97,0.00027726,5]
[364775345,1749238256630,-480.0,0.00027726,5]
[364775346,1749238256639,-480.0,0.00027726,5]
[364775347,1749238256649,-972.75,0.00027726,5]
[364775348,1749238256660,-235.90032861,0.00027726,5]
[364775349,1749238256671,-1458.85,0.00027726,5]
[364775350,1749238256682,-551.69,0.00027726,5]
[364775351,1749238256692,-2558.54,0.00027726,5]
[364775352,1749238256702,-480.0,0.00027726,5]
[364775353,1749238256711,-1271.48,0.00027726,5]
[364775354,1749238256721,-151.0,0.00027726,7]
[364775355,1749238256731,-744.59,0.00027726,5]
[364775356,1749238256741,-151.0,0.00027726,7]
[364775357,1749238256751,-151.0,0.00027726,7]
[364775358,1749238256760,-535.17,0.00027726,5]
[364775359,1749238256771,-1780.07,0.00027726,5]
[364775360,1749238256780,-825.48,0.00027726,5]
[364775361,1749238256791,-1087.45,0.00027726,5]
[364775362,1749238256800,-480.0,0.00027726,5]
[364775363,1749238256811,-3642.41,0.00027726,5]
[364775364,1749238256820,-480.0,0.00027726,5]
[364775365,1749238256830,-602.35,0.00027726,5]
[364775366,1749238256840,-457.404501,0.00027726,5]
[364775367,1749238256850,-980.76,0.00027726,5]
[364775368,1749238256860,-2952.08,0.00027726,5]
[364775369,1749238256870,-1491.88,0.00027726,5]
[364775370,1749238256879,-513.98,0.00027726,5]
[364775371,1749238256889,-480.0,0.00027726,5]
[364775372,1749238256899,-545.79,0.00027726,5]
[364775373,1749238256909,-480.0,0.00027726,5]
[364775374,1749238256919,-480.0,0.00027726,5]
[364775375,1749238256929,-533.03,0.00027726,5]
[364775376,1749238256939,-1677.66,0.00027726,5]
[364775377,1749238256949,-480.0,0.00027726,5]
[364775378,1749238256959,-480.0,0.00027726,5]
[364775379,1749238256968,-4496.09,0.00027726,5]
[364775380,1749238256978,-1755.28,0.00027726,5]
[364775381,1749238256987,-662.984692,0.00027726,7]
[364775382,1749238256996,-662.984692,0.00027726,7]
[364775383,1749238257006,-1692.52,0.00027726,5]
[364775384,1749238257016,-662.984692,0.00027726,7]
[364775385,1749238257026,-662.984692,0.00027726,7]
[364775386,1749238257036,-1650.3,0.00027726,5]
[364775387,1749238257046,-835.24,0.00027726,5]
[364775388,1749238257056,-480.0,0.00027726,5]
[364775389,1749238257066,-480.0,0.00027726,2]
[364775390,1749238257076,-5267.72,0.00027726,5]
[364775391,1749238257086,-934.457951,0.00027726,5]
[364775392,1749238257095,-480.0,0.00027726,5]
[364775393,1749238257106,-480.0,0.00027726,5]
[364775394,1749238257116,-480.0,0.00027726,5]
[364775395,1749238257126,-502.12,0.00027726,5]
[364775396,1749238257135,-729.42,0.00027726,5]
[364775397,1749238257144,-1800.89,0.00027726,5]
[364775398,1749238257154,-699.03,0.00027726,5]
[364775399,1749238257163,-498.83,0.00027726,5]
[364775400,1749238257173,-1536.39,0.00027726,5]
[364775401,1749238257182,-5553.8,0.00027726,5]
[364775402,1749238257191,-698.46,0.00027726,2]
[364775403,1749238257201,-480.0,0.00027726,5]
[364775404,1749238257210,-480.0,0.00027726,5]
[364775405,1749238257220,-900.05,0.00027726,5]
[364775406,1749238257230,-694.21,0.00027726,5]
[364775407,1749238257239,-211.41374949,0.00027726,5]
[364775408,1749238257249,-2081.72,0.00027726,5]
[364775409,1749238257259,-480.0,0.00027726,5]
[364775410,1749238257269,-1295.96,0.00027726,5]
[364775411,1749238257279,-480.0,0.00027726,5]
[364775412,1749238257289,-483.69,0.00027726,5]
[364775413,1749238257299,-484.44,0.00027726,5]
[364775414,1749238257309,-480.0,0.00027726,5]
[364775415,1749238257318,-10178.54,0.00027726,5]
[364775416,1749238257328,-480.0,0.00027726,5]
[364775417,1749238257337,-480.0,0.00027726,5]
[364775418,1749238257347,-2453.62,0.00027726,5]
[364775419,1749238257356,-480.0,0.00027726,5]
[364775420,1749238257366,-741.23633557,0.00027728,17]
[364775421,1749238257376,-150.0,0.00027728,2]
[364775422,1749238257386,-918.951478,0.00027728,7]
[364775423,1749238257396,-918.951478,0.00027728,7]
[364775424,1749238257406,-151.0,0.00027728,7]
[364775425,1749238257415,-151.0,0.00027728,7]
[364775426,1749238257425,-200.0,0.00027734,2]
[364775427,1749238257434,-203.03590547,0.00027734,2]
[364775428,1749238257443,-150.0,0.00027747,2]
[364775429,1749238257452,-150.0,0.00027765,2]
[364775430,1749238257461,-150.0,0.00027767,2]
[364775431,1749238257470,-1000.0,0.00027769,2]
[364775432,1749238257480,-1000.0,0.00027771,2]
[364775433,1749238257489,-500.0,0.00027773,5]
[364775434,1749238257498,-640.1051399,0.00027773,5]
[364775435,1749238257511,-500.0,0.00027773,5]
[364775436,1749238257520,-150.0,0.00027778,2]
[364775437,1749238257530,-150.0,0.00027782,2]
[364775438,1749238257539,-150.0,0.00027785,2]
[364775439,1749238257548,-150.0,0.00027786,2]
[364775440,1749238257558,-150.0,0.00027787,2]
[364775441,1749238257567,-150.0,0.00027792,2]
[364775442,1749238257576,-151.0,0.000278,7]
[364775443,1749238257586,-5700.0,0.000278,10]
[364775444,1749238257596,-1000.0,0.0002781,2]
[364775445,1749238257605,-150.0,0.00027811,2]
[364775446,1749238257614,-150.0,0.00027816,2]
[364775447,1749238257623,-150.0,0.00027823,2]
[364775448,1749238257632,-150.0,0.00027831,2]
[364775449,1749238257648,-150.0,0.00027844,2]
[364775450,1749238257658,-901.78,0.00027847,2]
[364775451,1749238257668,-150.0,0.00027859,2]
[364775452,1749238257678,-150.0,0.00027861,2]
[364775453,1749238257688,-150.0,0.00027869,2]
[364775454,1749238257700,-150.0,0.00027869,2]
[364775455,1749238257709,-150.0,0.0002787,2]
[364775456,1749238257720,-500.0,0.00027873,5]
[364775457,1749238257730,-500.0,0.00027873,5]
[364775458,1749238257740,-500.0,0.00027873,5]
[364775459,1749238257750,-500.0,0.00027873,5]
[364775460,1749238257760,-150.0,0.00027877,2]
[364775461,1749238257769,-150.0,0.00027879,2]
[364775462,1749238257779,-151.0,0.0002788,7]
[364775463,1749238257788,-162.784764,0.0002788,7]
[364775464,1749238257798,-162.784764,0.0002788,7]
[364775465,1749238257807,-151.0,0.0002788,7]
[364775466,1749238257817,-383.455473,0.0002788,7]
[364775467,1749238257827,-383.455473,0.0002788,7]
[364775468,1749238257836,-151.0,0.0002788,7]
[364775469,1749238257846,-1000.0,0.00027885,2]
[364775470,1749238257856,-150.73,0.00027887,2]
[364775471,1749238257866,-150.7,0.00027887,2]
[364775472,1749238257875,-1204.54,0.00027889,5]
[364775473,1749238257885,-1204.54,0.00027889,5]
[364775474,1749238257895,-151.0,0.0002789,7]
[364775475,1749238257904,-151.0,0.0002789,7]
[364775476,1749238257914,-151.0,0.0002789,7]
[364775477,1749238257923,-151.0,0.0002789,7]
[364775478,1749238257933,-151.0,0.0002789,7]
[364775479,1749238257943,-151.0,0.0002789,7]
[364775480,1749238257952,-151.0,0.0002789,7]
[364775481,1749238257961,-151.0,0.0002789,7]
[364775482,1749238257971,-151.0,0.0002789,7]
[364775483,1749238257980,-151.0,0.0002789,7]
[364775484,1749238257990,-199.642928,0.0002789,7]
[364775485,1749238258000,-151.0,0.0002789,7]
[364775486,1749238258011,-151.0,0.0002789,7]
[364775487,1749238258021,-151.0,0.0002789,7]
[364775488,1749238258031,-151.0,0.0002789,7]
[364775489,1749238258041,-157.246815,0.0002789,7]
[364775490,1749238258051,-151.0,0.0002789,7]
[364775491,1749238258062,-151.0,0.0002789,7]
[364775492,1749238258072,-155.941845,0.0002789,7]
[364775493,1749238258081,-151.0,0.0002789,7]
[364775494,1749238258092,-151.0,0.0002789,7]
[364775495,1749238258367,-151.0,0.0002789,7]
[364775496,1749238258380,-151.0,0.0002789,7]
[364775497,1749238258390,-151.0,0.0002789,7]
[364775498,1749238258400,-151.0,0.0002789,7]
[364775499,1749238258410,-151.118879,0.0002789,7]
[364775500,1749238258424,-151.0,0.0002789,7]
[364775501,1749238258434,-151.0,0.0002789,7]
[364775502,1749238258444,-589.063325,0.0002789,7]
[364775503,1749238258453,-151.0,0.0002789,7]
[364775504,1749238258463,-151.0,0.0002789,7]
[364775505,1749238258472,-1027.574881,0.0002789,7]
[364775506,1749238258482,-1027.574881,0.0002789,7]
[364775507,1749238258491,-151.0,0.0002789,7]
[364775508,1749238258501,-151.0,0.0002789,7]
[364775509,1749238258515,-151.0,0.0002789,7]
[364775510,1749238258524,-151.0,0.0002789,7]
[364775511,1749238258533,-151.0,0.0002789,7]
[364775512,1749238258543,-217.908942,0.0002789,7]
[364775513,1749238258554,-151.0,0.0002789,7]
[364775514,1749238258563,-151.0,0.0002789,7]
[364775515,1749238258572,-151.0,0.0002789,7]
[364775516,1749238258582,-151.0,0.0002789,7]
[364775517,1749238258592,-1184.242658,0.0002789,7]
[364775518,1749238258601,-1317.765658,0.0002789,5]
[364775519,1749238258611,-1184.242658,0.0002789,7]
[364775520,1749238258620,-1517.919858,0.0002789,5]
[364775521,1749238258630,-151.0,0.0002789,7]
[364775522,1749238258639,-151.0,0.0002789,7]
[364775523,1749238258649,-151.0,0.0002789,7]
[364775524,1749238258659,-602.044555,0.0002789,7]
[364775525,1749238258668,-480.0,0.0002789,5]
[364775526,1749238258678,-602.044555,0.0002789,7]
[364775527,1749238258688,-261.054565,0.0002789,7]
[364775528,1749238258698,-151.0,0.0002789,7]
[364775529,1749238258707,-261.054565,0.0002789,7]
[364775530,1749238258717,-151.0,0.0002789,7]
[364775531,1749238258727,-151.0,0.0002789,7]
[364775532,1749238258736,-172.604956,0.0002789,7]
[364775533,1749238258746,-151.0,0.0002789,7]
[364775534,1749238258755,-172.604956,0.0002789,7]
[364775535,1749238258765,-480.0,0.0002789,5]
[364775536,1749238258775,-480.0,0.0002789,5]
[364775537,1749238258784,-151.0,0.0002789,7]
[364775538,1749238258794,-151.0,0.0002789,7]
[364775539,1749238258803,-151.0,0.0002789,7]
[364775540,1749238258813,-480.0,0.0002789,5]
[364775541,1749238258823,-151.0,0.0002789,7]
[364775542,1749238258833,-480.0,0.0002789,5]
[364775543,1749238258843,-176.288002,0.0002789,7]
[364775544,1749238258853,-176.288002,0.0002789,7]
[364775545,1749238258863,-480.0,0.0002789,5]
[364775546,1749238258872,-190.889101,0.0002789,7]
[364775547,1749238258882,-190.889101,0.0002789,7]
[364775548,1749238258891,-480.0,0.0002789,5]
[364775549,1749238258901,-480.0,0.0002789,5]
[364775550,1749238258911,-166.74833,0.0002789,7]
[364775551,1749238258921,-166.74833,0.0002789,7]
[364775552,1749238258930,-480.0,0.0002789,5]
[364775553,1749238258940,-290.092063,0.0002789,7]
[364775554,1749238258950,-290.092063,0.0002789,7]
[364775555,1749238258960,-151.0,0.0002789,7]
[364775556,1749238258969,-151.0,0.0002789,7]
[364775557,1749238258979,-229.893418,0.0002789,7]
[364775558,1749238258988,-164.75868,0.0002789,7]
[364775559,1749238258998,-395.142899,0.0002789,7]
[364775560,1749238259008,-395.142899,0.0002789,7]
[364775561,1749238259018,-488.54,0.0002789,5]
[364775562,1749238259028,-256.08438,0.0002789,7]
[364775563,1749238259038,-256.08438,0.0002789,7]
[364775564,1749238259048,-732.99,0.0002789,5]
[364775565,1749238259058,-480.0,0.0002789,5]
[364775566,1749238259068,-151.0,0.0002789,7]
[364775567,1749238259078,-594.44,0.0002789,5]
[364775568,1749238259088,-1080.27,0.0002789,5]
[364775569,1749238259097,-151.0,0.0002789,7]
[364775570,1749238259107,-151.0,0.0002789,7]
[364775571,1749238259117,-487.01,0.0002789,5]
[364775572,1749238259127,-480.0,0.0002789,5]
[364775573,1749238259137,-480.0,0.0002789,5]
[364775574,1749238259147,-1121.24,0.0002789,5]
[364775575,1749238259157,-965.99,0.0002789,5]
[364775576,1749238259167,-151.0,0.0002789,7]
[364775577,1749238259177,-153.223815,0.0002789,7]
[364775578,1749238259187,-480.0,0.0002789,5]
[364775579,1749238259198,-520.36386006,0.0002789,5]
[364775580,1749238259207,-480.0,0.0002789,5]
[364775581,1749238259217,-634.69,0.0002789,5]
[364775582,1749238259227,-164.369548,0.0002789,5]
[364775583,1749238259238,-657.28,0.0002789,5]
[364775584,1749238259247,-480.0,0.0002789,5]
[364775585,1749238259257,-1036.73,0.0002789,5]
[364775586,1749238259267,-700.4,0.0002789,5]
[364775587,1749238259277,-522.03,0.0002789,5]
[364775588,1749238259287,-480.0,0.0002789,5]
[364775589,1749238259297,-151.0,0.0002789,7]
[364775590,1749238259307,-480.0,0.0002789,5]
[364775591,1749238259318,-600.0,0.0002789,30]
[364775592,1749238259327,-772.01,0.0002789,5]
[364775593,1749238259337,-480.0,0.0002789,5]
[364775594,1749238259346,-480.0,0.0002789,5]
[364775595,1749238259356,-588.08,0.0002789,5]
[364775596,1749238259366,-214.63189952,0.0002789,5]
[364775597,1749238259376,-510.66,0.0002789,5]
[364775598,1749238259386,-480.0,0.0002789,5]
[364775599,1749238259396,-151.0,0.0002789,7]
[364775600,1749238259407,-480.0,0.0002789,5]
[364775601,1749238259416,-480.0,0.0002789,5]
[364775602,1749238259426,-776.42,0.0002789,5]
[364775603,1749238259436,-570.13,0.0002789,5]
[364775604,1749238259445,-566.75,0.0002789,5]
[364775605,1749238259455,-891.4,0.0002789,5]
[364775606,1749238259465,-480.0,0.0002789,5]
[364775607,1749238259475,-741.477682,0.0002789,7]
[364775608,1749238259485,-851.49,0.0002789,5]
[364775609,1749238259495,-652.79,0.0002789,5]
[364775610,1749238259507,-741.477682,0.0002789,7]
[364775611,1749238259518,-480.0,0.0002789,5]
[364775612,1749238259527,-480.0,0.0002789,5]
[364775613,1749238259537,-151.0,0.0002789,7]
[364775614,1749238259547,-480.0,0.0002789,5]
[364775615,1749238259556,-875.61,0.0002789,5]
[364775616,1749238259566,-151.0,0.0002789,7]
[364775617,1749238259575,-533.65,0.0002789,5]
[364775618,1749238259586,-982.9,0.0002789,5]
[364775619,1749238259595,-480.0,0.0002789,5]
[364775620,1749238259605,-480.0,0.0002789,5]
[364775621,1749238259614,-724.05,0.0002789,5]
[364775622,1749238259623,-637.08,0.0002789,5]
[364775623,1749238259633,-511.37,0.0002789,5]
[364775624,1749238259642,-623.28,0.0002789,5]
[364775625,1749238259651,-480.0,0.0002789,5]
[364775626,1749238259662,-988.07,0.0002789,5]
[364775627,1749238259671,-151.0,0.0002789,7]
[364775628,1749238259681,-666.13,0.0002789,5]
[364775629,1749238259690,-480.0,0.0002789,5]
[364775630,1749238259700,-480.0,0.0002789,5]
[364775631,1749238259709,-480.0,0.0002789,5]
[364775632,1749238259718,-480.0,0.0002789,5]
[364775633,1749238259727,-956.4,0.0002789,5]
[364775634,1749238259736,-702.51,0.0002789,5]
[364775635,1749238259745,-480.0,0.0002789,5]
[364775636,1749238259755,-480.0,0.0002789,5]
[364775637,1749238259763,-480.0,0.0002789,5]
[364775638,1749238259772,-525.04,0.0002789,5]
[364775639,1749238259781,-545.11,0.0002789,5]
[364775640,1749238259790,-480.0,0.0002789,5]
[364775641,1749238259799,-480.0,0.0002789,5]
[364775642,1749238259809,-480.0,0.0002789,5]
[364775643,1749238259819,-548.91,0.0002789,5]
[364775644,1749238259827,-726.22,0.0002789,5]
[364775645,1749238259837,-1492.05,0.0002789,5]
[364775646,1749238259846,-480.0,0.0002789,5]
[364775647,1749238259855,-214.63870116,0.0002789,5]
[364775648,1749238259863,-151.0,0.0002789,7]
[364775649,1749238259872,-747.69,0.0002789,5]
[364775650,1749238259882,-534.21,0.0002789,5]
[364775651,1749238259891,-317.999202,0.0002789,7]
[364775652,1749238259900,-151.0,0.0002789,7]
[364775653,1749238259911,-480.0,0.0002789,5]
[364775654,1749238259920,-480.0,0.0002789,5]
[364775655,1749238259929,-480.0,0.0002789,5]
[364775656,1749238259939,-317.999202,0.0002789,7]
[364775657,1749238259948,-813.04,0.0002789,5]
[364775658,1749238259957,-1118.221366,0.0002789,7]
[364775659,1749238259966,-709.62,0.0002789,5]
[364775660,1749238259975,-2345.629707,0.0002789,7]
[364775661,1749238259984,-1118.221366,0.0002789,7]
[364775662,1749238259992,-2345.629707,0.0002789,7]
[364775663,1749238260002,-480.0,0.0002789,5]
[364775664,1749238260011,-784.75,0.0002789,5]
[364775665,1749238260020,-769.75,0.0002789,5]
[364775666,1749238260029,-151.0,0.0002789,7]
[364775667,1749238260039,-480.0,0.0002789,5]
[364775668,1749238260049,-480.0,0.0002789,5]
[364775669,1749238260058,-1609.82,0.0002789,5]
[364775670,1749238260068,-1327.01,0.0002789,5]
[364775671,1749238260077,-884.97,0.0002789,5]
[364775672,1749238260087,-480.0,0.0002789,5]
[364775673,1749238260096,-480.0,0.0002789,5]
[364775674,1749238260106,-556.78,0.0002789,5]
[364775675,1749238260115,-187.823847,0.0002789,7]
[364775676,1749238260125,-151.0,0.0002789,7]
[364775677,1749238260134,-480.0,0.0002789,5]
[364775678,1749238260144,-480.0,0.0002789,5]
[364775679,1749238260153,-151.0,0.0002789,7]
[364775680,1749238260163,-151.0,0.0002789,7]
[364775681,1749238260172,-168.02529908,0.0002789,2]
[364775682,1749238260182,-837.78,0.0002789,5]
[364775683,1749238260191,-233.095165,0.0002789,7]
[364775684,1749238260200,-722.94,0.0002789,5]
[364775685,1749238260209,-233.095165,0.0002789,7]
[364775686,1749238260218,-918.951478,0.0002789,7]
[364775687,1749238260227,-918.951478,0.0002789,7]
[364775688,1749238260236,-798.82,0.0002789,5]
[364775689,1749238260246,-151.0,0.0002789,7]
[364775690,1749238260255,-151.0,0.0002789,7]
[364775691,1749238260265,-480.0,0.0002789,5]
[364775692,1749238260275,-480.0,0.0002789,5]
[364775693,1749238260284,-151.0,0.0002789,7]
[364775694,1749238260293,-480.0,0.0002789,5]
[364775695,1749238260303,-841.94,0.0002789,5]
[364775696,1749238260312,-1110.18,0.0002789,5]
[364775697,1749238260321,-248.943433,0.0002789,7]
[364775698,1749238260331,-165.43364,0.0002789,7]
[364775699,1749238260340,-541.95,0.0002789,5]
[364775700,1749238260349,-501.99,0.0002789,5]
[364775701,1749238260358,-734.58,0.0002789,5]
[364775702,1749238260367,-940.18,0.0002789,5]
[364775703,1749238260376,-480.0,0.0002789,5]
[364775704,1749238260386,-2677.08,0.0002789,5]
[364775705,1749238260396,-748.04,0.0002789,5]
[364775706,1749238260406,-493.75,0.0002789,5]
[364775707,1749238260416,-480.0,0.0002789,5]
[364775708,1749238260425,-882.46,0.0002789,5]
[364775709,1749238260435,-480.0,0.0002789,5]
[364775710,1749238260444,-635.55,0.0002789,5]
[364775711,1749238260454,-480.0,0.0002789,5]
[364775712,1749238260464,-151.0,0.0002789,7]
[364775713,1749238260474,-526.86,0.0002789,5]
[364775714,1749238260483,-59280.37,0.0002789,5]
[364775715,1749238260492,-1593.82,0.0002789,5]
[364775716,1749238260501,-480.0,0.0002789,5]
[364775717,1749238260514,-2740.76,0.0002789,5]
[364775718,1749238260523,-621.63060408,0.0002789,5]
[364775719,1749238260532,-480.0,0.0002789,5]
[364775720,1749238260541,-480.0,0.0002789,5]
[364775721,1749238260550,-151.0,0.0002789,7]
[364775722,1749238260560,-1096.11,0.0002789,5]
[364775723,1749238260569,-511.43,0.0002789,5]
[364775724,1749238260577,-480.0,0.0002789,5]
[364775725,1749238260588,-480.0,0.0002789,5]
[364775726,1749238260597,-1000.0,0.0002789,2]
[364775727,1749238260606,-1254.37,0.0002789,5]
[364775728,1749238260615,-8256.04,0.0002789,5]
[364775729,1749238260624,-480.0,0.0002789,5]
[364775730,1749238260633,-2434.11,0.0002789,5]
[364775731,1749238260642,-3890.87,0.0002789,5]
[364775732,1749238260652,-996.25,0.0002789,5]
[364775733,1749238260662,-665.27,0.0002789,5]
[364775734,1749238260742,-1569.61,0.0002789,5]
[364775735,1749238260751,-480.0,0.0002789,5]
[364775736,1749238260760,-1000.0,0.0002789,5]
[364775737,1749238260769,-480.0,0.0002789,5]
[364775738,1749238260778,-528.51,0.0002789,5]
[364775739,1749238260787,-714.18,0.0002789,5]
[364775740,1749238260796,-675.52,0.0002789,5]
[364775741,1749238260805,-1429.09,0.0002789,5]
[364775742,1749238260813,-500.0,0.0002789,2]
[364775743,1749238260822,-787.0,0.0002789,5]
[364775744,1749238260831,-665.04,0.0002789,5]
[364775745,1749238260840,-151.0,0.0002789,7]
[364775746,1749238260850,-189.067661,0.0002789,7]
[364775747,1749238260859,-2692.59,0.0002789,5]
[364775748,1749238260868,-2650.03,0.0002789,5]
[364775749,1749238260877,-150.0,0.0002789,5]
[364775750,1749238260886,-1407.53,0.0002789,5]
[364775751,1749238260895,-480.0,0.0002789,5]
[364775752,1749238260904,-1044.58,0.0002789,5]
[364775753,1749238260913,-189.067661,0.0002789,7]
[364775754,1749238260922,-179.508406,0.0002789,7]
[364775755,1749238260932,-1121.69,0.0002789,5]
[364775756,1749238260941,-480.0,0.0002789,5]
[364775757,1749238260950,-461.975126,0.0002789,7]
[364775758,1749238260959,-480.0,0.0002789,5]
[364775759,1749238260969,-1259.89,0.0002789,5]
[364775760,1749238260979,-151.0,0.0002789,7]
[364775761,1749238260988,-179.508406,0.0002789,7]
[364775762,1749238260997,-1000.59,0.0002789,5]
[364775763,1749238261006,-461.975126,0.0002789,7]
[364775764,1749238261015,-682.93,0.0002789,5]
[364775765,1749238261024,-10449.09,0.0002789,5]
[364775766,1749238261033,-480.0,0.0002789,5]
[364775767,1749238261042,-2196.0,0.0002789,5]
[364775768,1749238261051,-2596.53,0.0002789,5]
[364775769,1749238261060,-2684.12,0.0002789,5]
[364775770,1749238261069,-480.0,0.0002789,5]
[364775771,1749238261078,-480.0,0.0002789,5]
[364775772,1749238261087,-1035.64,0.0002789,5]
[364775773,1749238261096,-1413.85,0.0002789,5]
[364775774,1749238261105,-269.254107,0.0002789,7]
[364775775,1749238261114,-1346.8,0.0002789,5]
[364775776,1749238261123,-1405.33,0.0002789,5]
[364775777,1749238261132,-789.6,0.0002789,5]
[364775778,1749238261141,-480.0,0.0002789,5]